bitfinex-derivatives/quotes_ETHF0:USTF0_20250123
["timestamp","ask_amount","ask_price","bid_price","bid_amount"]
[1737592998735,3.2078,3255.1,3254.5,0.49980397]
[1737592999035,0.61479,3254.6,3254.5,0.00460397]
[1737593000627,3.82259,3254.6,3254.5,0.00460397]
[1737593000827,3.82259,3254.6,3253.7,0.5044]
[1737593000828,5.64595575,3254.6,3253.7,0.5044]
[1737593001028,5.59353485,3254.2,3253.7,0.5044]
[1737593001237,5.59353485,3254.2,3253.5,40.8]
[1737593001532,0.61497,3253.7,3253.5,40.8]
[1737593001834,0.61497,3253.6,3253.5,40.8]
[1737593003033,0.00460397,3253.9,3253.7,0.61494]
[1737593003338,3.2078,3254.2,3253.9,0.6149]
[1737593003639,3.82266,3254.2,3253.8,0.61492]
[1737593003934,0.61489,3254.1,3253.7,0.61495]
[1737593004128,0.61489,3254.1,3253.6,3.7232]
[1737593004334,0.61489,3254.1,3253.6,1.13036]
[1737593004535,0.61489,3254.1,3253.7,0.61495]
[1737593004834,3.21240397,3254.2,3253.6,1.13037]
[1737593005030,0.61489,3254.1,3253.7,0.61494]
[1737593005234,5.59813882,3254.2,3253.5,40.8]
[1737593005433,0.61497,3253.7,3253.5,40.8]
[1737593006931,0.61497,3253.6,3253.5,40.8]
[1737593007133,1.12107,3253.6,3253.5,40.8]
[1737593007931,1.12107,3253.6,3253.3,0.00305958]
[1737593007932,0.61501,3253.4,3253.3,0.00305958]
[1737593009735,0.61501,3253.4,3252.4,0.61519]
[1737593009736,3.2078,3253.4,3252.4,0.61519]
[1737593009931,0.61505,3253.2,3252.4,0.61519]
[1737593010135,0.6151,3253.0,3252.5,0.61516]
[1737593010334,0.61511,3252.9,3252.5,0.61516]
[1737593010538,0.61511,3252.9,3252.4,40.8]
[1737593010735,0.61511,3252.9,3252.5,0.61517]
[1737593011439,0.5093,3253.1,3252.5,0.61517]
[1737593011834,0.5093,3253.1,3252.4,40.8]
[1737593011835,0.61513,3252.8,3252.4,41.41519]
[1737593012234,0.5093,3253.1,3252.4,41.41519]
[1737593012537,0.61516,3252.6,3252.4,40.8]
[1737593012731,0.61516,3252.6,3252.3,0.61983112]
[1737593013243,0.484,3252.9,3252.3,41.41983112]
[1737593013441,0.61517,3252.6,3252.3,41.41983112]
[1737593013741,1.09912,3252.9,3252.5,0.61517]
[1737593013935,1.09912,3252.9,3252.5,3.2078]
[1737593014131,1.09911,3252.9,3252.6,0.61515]
[1737593014532,0.61513,3252.8,3252.5,3.82298]
[1737593014732,0.484,3252.9,3252.5,3.82298]
[1737593014939,1.09911,3252.9,3252.5,3.82298]
[1737593015140,1.09911,3252.9,3252.6,0.61516]
[1737593015535,0.484,3252.9,3252.5,3.2078]
[1737593015738,0.484,3252.9,3252.8,0.61513]
[1737593016239,0.484,3252.9,3252.7,0.61514]
[1737593017441,0.484,3252.9,3252.5,3.2078]
[1737593017636,0.484,3252.9,3252.6,0.61515]
[1737593017837,0.484,3252.9,3252.7,0.61514]
[1737593018037,0.484,3252.9,3252.5,3.2078]
[1737593018236,1.09911,3252.9,3252.6,1.13836]
[1737593018440,0.484,3252.9,3252.6,0.5232]
[1737593018638,0.61516,3252.7,3252.5,3.2078]
[1737593018842,0.61513,3252.8,3252.5,3.2078]
[1737593019032,0.61516,3252.6,3252.5,3.2078]
[1737593019236,0.61515,3252.7,3252.5,3.2078]
[1737593019745,0.61516,3252.6,3252.5,3.2078]
[1737593020538,0.61516,3252.7,3252.5,3.2078]
[1737593020838,0.61516,3252.6,3252.5,3.2078]
[1737593021836,0.61516,3252.6,3252.3,0.61982112]
[1737593022033,0.61515,3252.7,3252.4,0.6152]
[1737593023439,3.2078,3253.0,3252.3,0.00461112]
[1737593023640,3.2078,3253.0,3252.9,0.61511]
[1737593024647,5.59353485,3253.6,3252.7,1.5119]
[1737593024848,3.2078,3253.6,3253.4,0.615]
[1737593025039,3.2078,3253.6,3253.5,0.61499]
[1737593025940,3.2078,3253.6,3253.0,3.2078]
[1737593026138,3.2078,3253.6,3253.4,0.615]
[1737593027043,3.2078,3253.6,3253.5,0.61499]
[1737593028045,3.2078,3253.6,3253.0,3.2078]
[1737593028446,3.2078,3253.6,3253.4,0.615]
[1737593028647,3.2078,3253.6,3253.5,40.8]
[1737593029046,3.2078,3253.6,3253.5,41.41499]
[1737593030149,0.5149,3253.9,3253.5,40.8]
[1737593030351,1.12983,3253.9,3253.6,0.61496]
[1737593031047,0.61494,3253.8,3253.5,41.41498]
[1737593031256,0.5149,3253.9,3253.6,0.61497]
[1737593031257,1.12983,3253.9,3253.6,0.61497]
[1737593031943,0.5149,3253.9,3253.5,40.8]
[1737593032347,0.5149,3253.9,3253.6,0.61497]
[1737593032548,1.12982,3253.9,3253.6,0.61497]
[1737593032748,0.5149,3253.9,3253.5,40.8]
[1737593032956,2.38573485,3253.7,3253.0,3.2078]
[1737593033460,0.61503,3253.4,3253.1,0.61506]
[1737593034152,2.38573485,3253.7,3253.0,3.2078]
[1737593034653,0.61497,3253.7,3253.1,0.61507]
[1737593034854,0.5149,3253.9,3253.0,3.2078]
[1737593035056,0.61502,3253.4,3253.1,0.61506]
[1737593035255,3.2078,3253.6,3253.2,0.61504]
[1737593035256,0.615,3253.5,3253.2,0.61504]
[1737593035554,3.2078,3253.6,3253.2,0.61504]
[1737593035752,0.61501,3253.5,3253.2,0.61504]
[1737593036155,3.2078,3253.6,3253.3,0.61503]
[1737593036156,3.82279,3253.6,3253.3,0.61503]
[1737593036354,0.615,3253.5,3253.2,0.61504]
[1737593036955,0.615,3253.5,3252.7,44.69763485]
[1737593037354,0.615,3253.5,3253.2,0.61504]
[1737593038257,0.615,3253.5,3252.7,44.69763485]
[1737593038258,0.61499,3253.5,3253.1,0.61505]
[1737593038657,3.2078,3253.6,3252.7,44.69763485]
[1737593038957,3.2078,3253.6,3253.2,0.61504]
[1737593038958,1.1287,3253.5,3253.2,0.61504]
[1737593039150,0.5137,3253.5,3252.7,42.3119]
[1737593039353,0.61502,3253.4,3252.7,42.3119]
[1737593039551,0.5137,3253.5,3252.7,42.3119]
[1737593039751,0.61501,3253.4,3253.2,0.61505]
[1737593039953,0.5137,3253.5,3253.2,0.61505]
[1737593040153,1.1287,3253.5,3253.2,0.61505]
[1737593040559,0.5137,3253.5,3253.2,0.61504]
[1737593040862,0.5137,3253.5,3253.3,0.61502]
[1737593041060,1.1287,3253.5,3253.2,0.61504]
[1737593043665,0.61503,3253.4,3252.8,0.61513]
[1737593043862,0.5137,3253.5,3252.7,42.3119]
[1737593044064,0.61506,3253.2,3252.9,0.6151]
[1737593044268,1.09984,3253.3,3252.8,0.61513]
[1737593044570,1.09984,3253.3,3252.9,0.61509]
[1737593044753,1.09984,3253.3,3253.0,0.61508]
[1737593044956,0.4848,3253.3,3252.7,42.3119]
[1737593045154,3.2078,3253.6,3253.4,0.615]
[1737593045368,3.82278,3253.6,3253.3,0.61502]
[1737593045866,0.61499,3253.5,3253.3,0.61502]
[1737593046064,3.2078,3253.6,3253.3,0.61502]
[1737593046265,0.61499,3253.6,3253.3,0.61502]
[1737593046460,3.2078,3253.5,3252.7,46.23546485]
[1737593046766,3.2078,3253.5,3253.3,0.61503]
[1737593046966,3.2078,3253.5,3252.8,1.53778]
[1737593047267,3.2078,3253.5,3253.3,0.61502]
[1737593047459,3.2078,3253.5,3252.8,1.53778]
[1737593047661,3.2078,3253.5,3253.4,0.61501]
[1737593048056,3.2078,3253.5,3252.7,44.69763485]
[1737593048276,3.2078,3253.5,3252.7,42.3119]
[1737593048575,2.38573485,3253.1,3252.7,41.8129]
[1737593048780,0.61511,3252.9,3252.6,3.82296]
[1737593049173,0.61511,3252.9,3252.6,3.2078]
[1737593049874,0.61512,3252.9,3252.5,0.6179404]
[1737593050074,2.38573485,3252.8,3252.5,0.0027704]
[1737593050378,0.61516,3252.6,3252.5,0.0027704]
[1737593052382,1.12675,3252.7,3252.5,0.0027704]
[1737593052580,0.5116,3252.7,3252.5,0.0027704]
[1737593052786,0.5116,3252.7,3252.5,0.6179504]
[1737593053289,0.5116,3252.7,3252.5,0.0027704]
[1737593053480,1.12924,3252.8,3252.5,0.6179504]
[1737593053680,1.12924,3252.8,3252.5,0.0027704]
[1737593054085,0.61516,3252.6,3252.5,0.0027704]
[1737593055677,4.30415,3252.7,3252.5,0.0027704]
[1737593056481,3.689,3252.7,3252.5,0.0027704]
[1737593056682,0.61516,3252.6,3252.5,0.0027704]
[1737593056980,0.66760893,3252.6,3252.5,0.0027704]
[1737593057183,5.05244893,3252.6,3252.3,0.00461112]
[1737593057388,3.00093485,3252.4,3252.3,0.00461112]
[1737593057687,3.05338378,3252.4,3252.3,0.00461112]
[1737593057885,3.53488378,3252.4,3252.3,0.00461112]
[1737593058386,3.5348926,3252.4,3252.3,0.00461112]
[1737593058881,8.53488881,3252.4,3251.7,40.8]
[1737593059083,0.61536,3251.6,3251.3,0.5248]
[1737593059384,2.38573485,3251.8,3251.3,0.5248]
[1737593059385,0.61533,3251.7,3251.3,0.5248]
[1737593059594,0.5075,3251.7,3251.3,41.3248]
[1737593059780,0.61535,3251.6,3251.3,41.3248]
[1737593060181,0.61535,3251.6,3251.3,0.5248]
[1737593061488,0.61537,3251.6,3251.3,0.5248]
[1737593062981,0.61535,3251.6,3251.3,0.5248]
[1737593063279,0.61537,3251.5,3251.3,0.5248]
[1737593064092,3.00110485,3251.5,3251.3,0.5248]
[1737593064284,0.61539,3251.4,3251.3,0.5248]
[1737593064489,0.61547,3251.0,3250.9,0.5078]
[1737593065184,0.6155,3250.8,3250.5,1.0005]
[1737593065486,0.6155,3250.8,3250.5,1.5208]
[1737593066085,0.6155,3250.8,3250.5,1.0403]
[1737593066086,3.00123485,3250.8,3250.5,1.0403]
[1737593066290,0.61562,3250.2,3250.1,0.4805]
[1737593066494,2.38573485,3250.3,3249.8,0.52]
[1737593066893,0.61562,3250.2,3249.8,0.52]
[1737593067087,0.61564,3250.1,3249.9,40.8]
[1737593067392,0.61566,3250.0,3249.8,0.52]
[1737593067592,2.38573485,3250.3,3249.8,0.52]
[1737593067994,5.59353485,3250.6,3249.8,0.52]
[1737593068295,0.61557,3250.5,3250.1,0.61563]
[1737593068596,0.61557,3250.5,3250.1,1.09983]
[1737593068782,3.82335,3250.6,3250.2,0.6156]
[1737593068988,0.61556,3250.5,3250.2,0.6156]
[1737593069188,5.59353485,3250.6,3250.1,0.4842]
[1737593069394,0.61556,3250.5,3250.2,0.61562]
[1737593069699,0.61556,3250.5,3250.2,0.61561]
[1737593069891,5.59353485,3250.6,3250.1,0.4842]
[1737593070088,0.61557,3250.5,3250.2,0.61561]
[1737593070394,5.59353485,3250.6,3250.2,0.61561]
[1737593070783,6.20908485,3250.6,3250.2,0.61561]
[1737593071091,5.59353485,3250.6,3250.1,0.4842]
[1737593071289,3.7063,3251.0,3250.7,0.61552]
[1737593071687,5.59353485,3251.5,3250.8,0.5009]
[1737593071885,0.4832,3251.6,3250.9,3.7086]
[1737593072086,0.00461112,3251.8,3251.3,3.2078]
[1737593072292,0.00461112,3251.8,3251.7,0.61533]
[1737593073590,0.00461112,3251.8,3251.7,3.82313]
[1737593076698,0.61518,3252.5,3252.3,0.61522]
[1737593077993,0.61518,3252.5,3252.1,0.00461112]
[1737593078497,0.61518,3252.5,3252.2,0.61523]
[1737593078696,0.61518,3252.5,3252.1,0.00461112]
[1737593078697,1.09837,3252.6,3252.3,0.61521]
[1737593079095,0.4832,3252.6,3252.1,0.00461112]
[1737593079295,1.09837,3252.6,3252.4,0.61519]
[1737593079496,0.4832,3252.6,3252.3,0.61522]
[1737593080098,1.09838,3252.6,3252.3,0.61522]
[1737593080401,1.09838,3252.6,3252.2,0.61524]
[1737593080602,1.09838,3252.6,3252.1,0.00461112]
[1737593080804,0.4832,3252.6,3252.3,0.61521]
[1737593081601,0.4832,3252.6,3252.1,0.00461112]
[1737593081802,0.4832,3252.6,3252.4,0.6152]
[1737593082400,3.21241112,3252.7,3252.6,0.61516]
[1737593083195,0.00461112,3252.7,3252.6,0.61516]
[1737593085996,0.00461112,3252.7,3252.5,0.61517]
[1737593086199,5.59814597,3252.7,3252.1,0.00461112]
[1737593086402,0.6152,3252.5,3252.1,0.61987112]
[1737593086601,0.4879,3252.4,3252.1,0.61986112]
[1737593086794,0.4879,3252.4,3252.3,0.61522]
[1737593087300,3.21241112,3252.7,3252.4,0.61519]
[1737593087505,0.00461112,3252.7,3252.4,0.61519]
[1737593088005,0.61976112,3252.7,3252.4,0.61519]
[1737593088207,0.00461112,3252.7,3252.2,1.0188]
[1737593088404,0.61519,3252.5,3252.2,1.0188]
[1737593088600,0.4782,3252.6,3252.2,1.63404]
[1737593089010,0.61518,3252.5,3252.2,1.63404]
[1737593089415,1.09337,3252.6,3252.2,1.63404]
[1737593090010,0.4782,3252.6,3252.2,1.0188]
[1737593090311,0.4782,3252.6,3252.3,0.6152]
[1737593090610,0.4782,3252.6,3252.5,0.61518]
[1737593091101,0.4782,3252.6,3252.4,0.6152]
[1737593091708,3.21241112,3252.7,3252.4,2.38573485]
[1737593092012,0.00461112,3252.7,3252.6,0.61516]
[1737593093108,0.00461112,3252.7,3252.6,41.41516]
[1737593096614,0.00461112,3252.7,3252.6,0.61516]
[1737593096819,0.00461112,3252.7,3252.6,3.59916]
[1737593097212,0.00461112,3252.7,3252.6,41.41516]
[1737593101422,1.53725,3254.1,3253.8,0.61492]
[1737593101423,0.61491,3254.0,3253.8,0.61492]
[1737593101616,0.9977,3254.0,3253.6,3.2078]
[1737593101917,0.9977,3254.0,3253.6,0.61496]
[1737593101918,0.61494,3253.8,3253.6,0.61496]
[1737593102221,0.9977,3254.0,3253.3,1.044]
[1737593102425,1.00231112,3254.0,3253.6,3.2078]
[1737593102626,1.00231112,3254.0,3253.9,0.61492]
[1737593103226,0.00461112,3254.0,3253.9,41.41492]
[1737593104120,0.00461112,3254.0,3253.3,0.61502]
[1737593104316,0.51031112,3254.0,3253.0,3.2078]
[1737593104525,1.12522112,3254.0,3253.8,0.61493]
[1737593104922,1.12522112,3254.0,3253.2,1.53763]
[1737593104923,0.51031112,3254.0,3253.4,2.38573485]
[1737593105133,0.00461112,3254.0,3253.9,0.61492]
[1737593105526,0.00461112,3254.0,3253.6,0.4825]
[1737593105825,0.00461112,3254.0,3253.9,0.61492]
[1737593106727,0.00461112,3254.0,3253.7,5.59353485]
[1737593106932,0.61494,3253.8,3253.7,3.2078]
[1737593107223,0.61494,3253.8,3252.9,1.78080647]
[1737593107224,0.61494,3253.8,3253.0,0.4927]
[1737593107429,1.033,3253.7,3253.0,0.4927]
[1737593107625,0.61504,3253.3,3253.0,0.61509]
[1737593107822,0.61505,3253.3,3252.9,0.61509]
[1737593108029,0.61505,3253.3,3253.0,0.61508]
[1737593108225,0.61506,3253.2,3252.9,0.6151]
[1737593108425,3.2078,3253.4,3252.5,2.984]
[1737593108622,0.527,3253.1,3253.0,0.61509]
[1737593108827,0.527,3253.1,3252.6,2.38573485]
[1737593109028,0.527,3253.1,3252.5,2.984]
[1737593109335,0.527,3253.1,3253.0,0.61509]
[1737593110536,0.61511,3252.9,3252.7,0.61514]
[1737593110739,0.527,3253.1,3252.5,6.1918]
[1737593110930,0.61504,3253.3,3252.7,0.61514]
[1737593111126,0.61505,3253.2,3253.0,0.61508]
[1737593111331,0.61508,3253.1,3252.5,6.1918]
[1737593111531,3.2078,3253.4,3252.5,6.1918]
[1737593111936,3.2078,3253.4,3252.9,3.2078]
[1737593112337,3.2078,3253.4,3253.3,0.61503]
[1737593112537,3.2078,3253.4,3253.3,40.8]
[1737593112835,3.82281,3253.4,3253.3,40.8]
[1737593113132,3.82281,3253.4,3252.3,5.05343485]
[1737593113133,3.2078,3253.4,3252.3,5.05343485]
[1737593113338,2.38573485,3253.2,3252.3,3.1538]
[1737593113537,0.61508,3253.1,3252.3,5.53953485]
[1737593113733,3.2078,3253.4,3252.6,40.8]
[1737593113934,0.61504,3253.3,3252.6,40.8]
[1737593114130,3.2078,3253.4,3253.2,0.61503]
[1737593114440,3.2078,3253.4,3252.6,43.18573485]
[1737593114639,3.82282,3253.4,3253.1,0.61506]
[1737593114840,3.2078,3253.4,3252.6,43.18573485]
[1737593115138,2.38573485,3253.8,3252.6,43.18573485]
[1737593115139,3.2078,3254.2,3253.3,3.2078]
[1737593115341,3.2078,3254.2,3253.8,0.61493]
[1737593115342,0.61489,3254.1,3253.8,0.61493]
[1737593115642,0.61952112,3254.0,3253.7,0.61494]
[1737593115844,0.00461112,3254.0,3253.7,0.61494]
[1737593116245,0.00461112,3254.0,3253.8,0.61493]
[1737593117437,0.00461112,3254.0,3253.4,1.4744]
[1737593117840,0.00461112,3254.0,3253.9,0.61492]
[1737593118441,0.00461112,3254.0,3253.9,41.41492]
[1737593121434,0.61951112,3254.0,3253.7,3.82275]
[1737593121741,0.61494,3253.8,3253.7,3.2078]
[1737593121950,0.61499,3253.6,3253.4,0.61501]
[1737593122246,3.82272,3253.9,3253.7,0.61494]
[1737593122444,3.2078,3253.9,3253.5,0.5106]
[1737593122642,0.00461112,3254.0,3253.9,0.61492]
[1737593123548,0.00461112,3254.0,3253.9,41.41492]
[1737593124048,0.00461112,3254.0,3253.9,41.86948091]
[1737593124243,0.00461112,3254.0,3253.9,42.39158091]
[1737593126051,0.00461112,3254.0,3253.9,41.93702]
[1737593127354,1e-08,3254.0,3253.9,42.39168611]
[1737593127952,1e-08,3254.0,3253.9,43.11902096]
[1737593129352,1e-08,3254.0,3253.9,48.56011981]
[1737593129555,1e-08,3254.0,3253.9,48.56011539]
[1737593130053,0.4828,3254.9,3254.8,0.61475]
[1737593130255,3.2078,3255.5,3253.9,50.33093024]
[1737593130256,3.2078,3255.5,3254.7,3.2078]
[1737593130456,3.2078,3255.5,3255.4,0.61463]
[1737593130762,3.2078,3255.5,3255.2,40.8]
[1737593130950,0.61465,3255.3,3255.2,40.8]
[1737593131155,0.61467,3255.2,3255.1,3.2078]
[1737593131847,0.4774,3255.4,3255.1,3.2078]
[1737593132354,0.61467,3255.2,3255.1,3.2078]
[1737593132553,0.61466,3255.3,3255.1,3.2078]
[1737593132754,0.4774,3255.4,3255.1,3.2078]
[1737593132956,3.2078,3255.5,3255.1,3.2078]
[1737593133152,3.2078,3255.5,3255.4,0.61463]
[1737593134060,0.99671112,3255.6,3255.2,0.5203]
[1737593134061,0.99671112,3255.6,3255.5,0.61462]
[1737593134660,0.00461112,3255.6,3255.5,0.61462]
[1737593135867,0.00461112,3255.6,3255.5,3.82242]
[1737593137065,0.61921112,3255.6,3255.3,4.10303]
[1737593137368,0.5081,3255.5,3255.4,0.61463]
[1737593137961,0.5081,3255.5,3255.3,2.984]
[1737593138263,0.5081,3255.5,3255.1,3.2078]
[1737593138468,0.61467,3255.2,3255.1,3.2078]
[1737593139971,1.0298,3255.4,3254.9,0.00461112]
[1737593140160,0.61471,3255.0,3254.9,0.00461112]
[1737593142168,2.38573485,3255.0,3254.7,3.2078]
[1737593142474,0.61475,3254.8,3254.7,3.2078]
[1737593146976,0.6148,3254.5,3254.4,0.00461112]
[1737593150871,0.6672215,3254.5,3254.4,0.00461112]
[1737593151072,5.0524215,3254.5,3253.8,3.2078]
[1737593151376,0.61492,3253.9,3253.8,3.2078]
[1737593151570,0.61492,3253.9,3253.8,44.0078]
[1737593152173,0.61492,3253.9,3253.8,40.8]
[1737593152376,3.82272,3253.9,3253.8,40.8]
[1737593152675,0.61497,3253.6,3253.5,0.00461112]
[1737593153274,0.61511,3252.9,3252.8,40.8]
[1737593153876,3.2078,3253.3,3252.8,40.8]
[1737593154180,3.2078,3253.7,3252.8,43.784]
[1737593154374,0.61503,3253.4,3253.1,0.61506]
[1737593154982,3.7152,3253.7,3253.0,0.61508]
[1737593155177,0.61504,3253.3,3253.0,0.61508]
[1737593155480,3.7152,3253.7,3252.9,2.38573485]
[1737593155779,0.61504,3253.3,3253.0,0.61508]
[1737593156171,5.2526,3253.7,3252.9,0.6151]
[1737593156373,2.38573485,3253.6,3252.8,43.784]
[1737593156581,0.61511,3252.9,3252.8,43.784]
[1737593159078,0.61511,3252.9,3252.8,40.8]
[1737593160076,5.59353485,3253.3,3252.8,40.8]
[1737593160077,3.2078,3253.3,3252.8,40.8]
[1737593160277,0.61509,3253.0,3252.9,0.5202]
[1737593160783,3.2078,3253.3,3252.9,0.5202]
[1737593160784,0.61508,3253.1,3252.9,0.5202]
[1737593161081,3.2078,3253.3,3252.9,2.90593485]
[1737593161476,0.61505,3253.2,3253.0,40.8]
[1737593161677,0.61505,3253.2,3253.1,0.5156]
[1737593162382,3.2078,3253.3,3253.1,41.3156]
[1737593162681,1.53777,3253.0,3252.2,6.1918]
[1737593162986,0.61522,3252.3,3252.2,6.6851]
[1737593163181,0.61522,3252.3,3252.2,47.4851]
[1737593163585,0.6152,3252.4,3252.2,47.4851]
[1737593163885,4.2121,3252.9,3252.2,47.4851]
[1737593164078,3.82292,3252.9,3252.6,0.61516]
[1737593164284,3.2078,3252.9,3252.7,2.86843485]
[1737593164487,0.61513,3252.8,3252.7,0.4827]
[1737593165686,0.61512,3252.9,3252.7,0.4827]
[1737593165888,0.61508,3253.1,3252.8,0.61512]
[1737593166085,0.61509,3253.0,3252.9,0.5116]
[1737593167284,0.4914,3253.3,3252.7,0.4827]
[1737593167485,0.61514,3252.7,3252.6,3.2078]
[1737593167781,3.2078,3253.0,3252.0,3.7062]
[1737593167981,4.2541,3253.0,3252.3,0.4928]
[1737593168284,3.736,3253.0,3252.3,1.0117]
[1737593168589,0.6151,3253.0,3252.7,0.61514]
[1737593168790,0.4914,3253.3,3252.8,0.4984]
[1737593168984,0.61511,3252.9,3252.8,0.4984]
[1737593169988,0.61518,3252.5,3252.4,3.2078]
[1737593170289,0.61517,3252.6,3252.4,3.7062]
[1737593170490,1.53769,3253.1,3252.4,3.7062]
[1737593170681,0.61517,3252.6,3252.4,3.7062]
[1737593171186,0.5282,3253.2,3252.4,3.7062]
[1737593171486,0.5282,3253.2,3252.5,0.61517]
[1737593171688,0.61513,3252.8,3252.5,0.61517]
[1737593172289,0.61513,3252.8,3252.5,0.61518]
[1737593172583,0.5282,3253.2,3252.5,0.61518]
[1737593172780,0.61516,3252.7,3252.5,0.61518]
[1737593173081,0.61518,3252.5,3252.4,0.4984]
[1737593173882,0.5195,3253.1,3252.4,0.4984]
[1737593174077,0.61518,3252.5,3252.4,0.4984]
[1737593174288,0.61518,3252.5,3252.4,3.7062]
[1737593176591,0.61518,3252.5,3252.4,4.3214]
[1737593176891,0.61513,3252.8,3252.4,9.07593485]
[1737593177189,0.5282,3253.2,3252.4,9.07593485]
[1737593177386,0.61518,3252.6,3252.4,7.3054]
[1737593177583,0.61518,3252.6,3252.5,0.46756281]
[1737593177985,0.61518,3252.6,3252.5,3.67536281]
[1737593178186,0.61518,3252.6,3252.5,0.46756281]
[1737593178481,0.61518,3252.6,3252.4,4.0976]
[1737593178688,0.61518,3252.6,3252.5,3.82298]
[1737593178991,0.5282,3253.2,3252.4,3.4824]
[1737593179196,1.53768,3253.1,3252.5,0.46784748]
[1737593179393,0.61516,3252.6,3252.5,0.46784748]
[1737593179900,0.61518,3252.5,3252.4,3.4824]
[1737593180587,0.61518,3252.5,3252.4,2.984]
[1737593181597,0.61518,3252.5,3252.4,3.45285554]
[1737593182089,0.61518,3252.5,3252.4,0.46885554]
[1737593182495,0.5057,3252.7,3252.1,44.0078]
[1737593182692,0.61524,3252.2,3252.1,44.0078]
[1737593183101,0.61524,3252.2,3252.1,44.47697155]
[1737593183794,0.61524,3252.2,3252.1,41.26917155]
[1737593183994,0.61524,3252.2,3252.1,40.8]
[1737593187396,0.61524,3252.2,3251.3,1.813]
[1737593187397,2.38573485,3252.2,3251.2,2.38573485]
[1737593187689,0.61539,3251.4,3251.3,2.15673755]
[1737593187895,0.61539,3251.4,3251.3,45.66357641]
[1737593188085,0.61539,3251.4,3251.3,45.20608681]
[1737593188590,3.21241112,3252.0,3251.3,44.46867954]
[1737593188785,0.61537,3251.6,3251.3,45.08407954]
[1737593188992,0.61537,3251.5,3251.3,45.08407954]
[1737593189299,0.61537,3251.5,3251.4,0.46087954]
[1737593189995,0.5104,3251.8,3251.3,44.0078]
[1737593190199,0.61539,3251.4,3251.3,44.0078]
[1737593190791,0.5104,3251.8,3251.3,44.0078]
[1737593190998,0.61538,3251.5,3251.3,44.0078]
[1737593191193,0.61538,3251.5,3251.4,0.61539]
[1737593191495,0.61539,3251.4,3251.3,44.0078]
[1737593192095,0.5104,3251.8,3251.3,44.0078]
[1737593192301,0.61538,3251.5,3251.3,44.62319]
[1737593192500,0.61539,3251.5,3251.3,44.6232]
[1737593192701,0.61539,3251.5,3251.4,0.61539]
[1737593192901,0.61539,3251.4,3251.3,44.6232]
[1737593193401,0.61538,3251.5,3251.4,0.61539]
[1737593193901,0.61538,3251.5,3251.4,1.65929]
[1737593194300,0.61538,3251.5,3251.4,1.0439]
[1737593194795,0.61538,3251.5,3251.4,1.65929]
[1737593194999,0.61538,3251.5,3251.4,1.0439]
[1737593197504,0.5104,3251.8,3251.3,44.0078]
[1737593197810,0.61539,3251.4,3251.3,44.62321]
[1737593198308,0.61539,3251.4,3251.3,41.41541]
[1737593198497,0.61539,3251.4,3251.3,40.8]
[1737593198703,0.61539,3251.4,3251.3,41.41541]
[1737593199308,0.61539,3251.4,3251.3,40.8]
[1737593200105,0.61539,3251.4,3251.3,41.41541]
[1737593200414,0.61538,3251.5,3251.4,0.61539]
[1737593200804,0.61536,3251.6,3251.5,0.61537]
[1737593201005,0.61538,3251.5,3251.3,41.4154]
[1737593201207,0.5104,3251.8,3251.3,40.8]
[1737593201408,0.61537,3251.5,3251.3,41.4154]
[1737593201611,0.61537,3251.5,3251.3,40.8]
[1737593201809,0.61537,3251.5,3251.3,41.41541]
[1737593202310,0.5104,3251.8,3251.3,40.8]
[1737593202510,1.12572,3251.8,3251.6,0.61533]
[1737593202814,0.61534,3251.7,3251.5,0.61536]
[1737593203018,1.12573,3251.8,3251.5,0.61537]
[1737593203216,0.61535,3251.7,3251.5,0.61536]
[1737593203714,0.5104,3251.8,3251.4,0.5021]
[1737593203911,0.61536,3251.6,3251.4,1.11748]
[1737593204218,0.61536,3251.6,3251.5,0.61537]
[1737593204611,0.61534,3251.7,3251.5,0.61537]
[1737593204812,0.5104,3251.8,3251.5,0.61537]
[1737593205112,0.61535,3251.6,3251.5,0.61537]
[1737593205320,0.61535,3251.6,3251.4,0.5021]
[1737593205321,1.12573,3251.8,3251.6,0.61535]
[1737593205514,3.71471112,3252.0,3251.5,1.13156]
[1737593205515,0.61533,3251.7,3251.5,1.13156]
[1737593205718,0.61533,3251.7,3251.6,0.61535]
[1737593206422,3.71471112,3252.0,3251.8,0.61531]
[1737593206622,0.6153,3251.9,3251.5,0.5162]
[1737593206824,0.00461112,3252.0,3251.5,0.5162]
[1737593207023,0.61990112,3252.0,3251.8,0.61531]
[1737593207918,0.00461112,3252.0,3251.7,0.61532]
[1737593208120,0.6153,3251.9,3251.7,0.61532]
[1737593208718,0.61990112,3252.0,3251.7,0.61532]
[1737593208918,0.6153,3251.9,3251.7,0.61532]
[1737593210925,0.61990112,3252.0,3251.7,0.61532]
[1737593211828,0.6153,3251.9,3251.7,0.61532]
[1737593212023,0.61531,3251.8,3251.6,3.82315]
[1737593212325,0.00461112,3252.0,3251.6,3.2078]
[1737593212723,0.00461112,3252.0,3251.6,3.82314]
[1737593212924,0.61533,3251.7,3251.6,3.2078]
[1737593213232,0.61533,3251.8,3251.6,3.82315]
[1737593213430,0.61533,3251.8,3251.6,3.2078]
[1737593214533,0.61533,3251.8,3251.6,3.82315]
[1737593214828,0.00461112,3252.0,3251.6,3.82315]
[1737593215021,0.61531,3251.9,3251.6,3.82315]
[1737593215428,0.61532,3251.8,3251.6,3.82315]
[1737593215830,0.00461112,3252.0,3251.6,3.2078]
[1737593216024,0.00461112,3252.0,3251.9,0.6153]
[1737593216229,0.00461112,3252.0,3251.9,2.04036926]
[1737593216425,0.00461112,3252.0,3251.9,6.72909516]